fUSD/lending_fUSD_20260106
["ID","MTS","AMOUNT","RATE_DAILY","PERIOD"]
[400610432,1767743432725,-365.74,0.00017785,2]
[400610434,1767743432734,-249.0,0.0001782,2]
[400610436,1767743432743,-692.93433333,0.0001782,2]
[400610437,1767743432752,-164.72,0.0001782,2]
[400610439,1767743432761,-202300.73988631,0.0001783,2]
[400610441,1767743432770,-2500.0,0.0001788,2]
[400610443,1767743432779,-150.0,0.0001788,2]
[400610445,1767743432788,-300.0,0.0001788,2]
[400610447,1767743432797,-195.0,0.0001788,2]
[400610449,1767743432806,-300.0,0.0001788,2]
[400610451,1767743432815,-198.46369561,0.0001788,2]
[400610453,1767743432823,-193.0,0.0001788,2]
[400610455,1767743432833,-3736.4505,0.00017899,2]
[400610457,1767743432842,-2858.9006,0.000179,2]
[400610459,1767743432852,-1000.0,0.000179,2]
[400610461,1767743432861,-150.0,0.000179,2]
[400610463,1767743432870,-6223.7390172,0.000179,2]
[400610465,1767743432879,-2658.44986635,0.000179,2]
[400610467,1767743432888,-177.16389542,0.000179,3]
[400610469,1767743432896,-500.0,0.000179,2]
[400610471,1767743432905,-500.0,0.000179,2]
[400610473,1767743432914,-500.0,0.000179,2]
[400610475,1767743432923,-500.0,0.000179,2]
[400610477,1767743432932,-500.0,0.000179,2]
[400610479,1767743432941,-500.0,0.000179,2]
[400610481,1767743432950,-500.0,0.000179,2]
[400610483,1767743432960,-500.0,0.000179,2]
[400610485,1767743432969,-500.0,0.000179,2]
[400610487,1767743432978,-500.0,0.000179,2]
[400610489,1767743432987,-500.0,0.000179,2]
[400610491,1767743432997,-500.0,0.000179,2]
[400610493,1767743433010,-500.0,0.000179,2]
[400610495,1767743433020,-500.0,0.000179,2]
[400610497,1767743433029,-500.0,0.000179,2]
[400610499,1767743433038,-500.0,0.000179,2]
[400610501,1767743433049,-500.0,0.000179,2]
[400610503,1767743433057,-500.0,0.000179,2]
[400610505,1767743433066,-500.0,0.000179,2]
[400610507,1767743433078,-500.0,0.000179,2]
[400610509,1767743433087,-1640.77636325,0.00017904,2]
[400610511,1767743433097,-166.66,0.00017911,2]
[400610513,1767743433106,-19699.12014675,0.00017922,2]
[400610515,1767743433115,-2500.0,0.00017942,2]
[400610517,1767743433124,-300.0,0.00017942,2]
[400610519,1767743433133,-195.0,0.00017942,2]
[400610521,1767743433142,-302.33857604,0.00017942,2]
[400610523,1767743433151,-250.0,0.00017942,2]
[400610525,1767743433161,-2500.0,0.00017942,2]
[400610527,1767743433170,-300.0,0.00017942,2]
[400610529,1767743433179,-300.0,0.00017942,2]
[400610531,1767743433188,-500.0,0.00017943,2]
[400610533,1767743433197,-1372.68,0.00017943,2]
[400610535,1767743433207,-154.98,0.00017959,2]
[400610537,1767743433216,-500.0,0.00017968,2]
[400610539,1767743433226,-500.0,0.00017968,2]
[400610540,1767743433235,-613.32,0.00017968,2]
[400610541,1767743433244,-500.0,0.00017968,2]
[400610542,1767743433253,-500.0,0.00017968,2]
[400610543,1767743433262,-500.0,0.00017968,2]
[400610544,1767743433272,-500.0,0.00017968,2]
[400610545,1767743433281,-500.0,0.00017968,2]
[400610546,1767743433290,-500.0,0.00017968,2]
[400610547,1767743433300,-500.0,0.00017968,2]
[400610548,1767743433309,-500.0,0.00017973,2]
[400610549,1767743433318,-500.0,0.00017973,2]
[400610550,1767743433327,-500.0,0.00017973,2]
[400610551,1767743433337,-500.0,0.00017973,2]
[400610552,1767743433345,-500.0,0.00017973,2]
[400610553,1767743433355,-172.97755779,0.00017973,2]
[400610554,1767743433364,-470.36063607,0.00017973,2]
[400610555,1767743433373,-501.12934811,0.00017973,2]
[400610556,1767743433382,-500.0,0.00017973,2]
[400610557,1767743433392,-500.0,0.00017973,2]
[400610558,1767743433402,-500.0,0.00017973,2]
[400610559,1767743433411,-500.0,0.00017973,2]
[400610560,1767743433421,-177.06651139,0.00017973,2]
[400610561,1767743433430,-165.87580702,0.00017973,2]
[400610562,1767743433440,-500.0,0.00017973,2]
[400610563,1767743433449,-500.0,0.00017973,2]
[400610564,1767743433458,-500.0,0.00017973,2]
[400610565,1767743433468,-500.0,0.00017973,2]
[400610566,1767743433477,-500.0,0.00017973,2]
[400610567,1767743433487,-500.0,0.00017973,2]
[400610568,1767743433496,-502.72217232,0.00017973,2]
[400610569,1767743433505,-500.0,0.00017973,2]
[400610570,1767743433515,-500.0,0.00017973,2]
[400610571,1767743433524,-403.01772086,0.00017973,2]
[400610572,1767743433533,-543.38282097,0.00017973,2]
[400610573,1767743433542,-163.4765101,0.00017973,2]
[400610574,1767743433551,-500.0,0.00017973,2]
[400610575,1767743433561,-500.0,0.00017973,2]
[400610576,1767743433570,-500.0,0.00017973,2]
[400610577,1767743433579,-500.0,0.00017973,2]
[400610578,1767743433589,-500.0,0.00017973,2]
[400610579,1767743433599,-500.0,0.00017973,2]
[400610580,1767743433608,-219.35995196,0.00017982,2]
[400610581,1767743433617,-692.93433333,0.0001799,2]
[400610582,1767743433627,-151.0,0.00017996,2]
[400610583,1767743433637,-151.0,0.00017997,2]
[400610584,1767743433646,-151.0,0.00017997,2]
[400610585,1767743433655,-3166.8150377,0.00017999,2]
[400610586,1767743433667,-82926.4291868,0.00017999,2]
[400610587,1767743433676,-500.0,0.00017999,2]
[400610588,1767743433685,-500.0,0.00017999,2]
[400610589,1767743433694,-500.0,0.00017999,2]
[400610590,1767743433703,-500.0,0.00017999,2]
[400610591,1767743433712,-500.0,0.00017999,2]
[400610592,1767743433721,-500.0,0.00017999,2]
[400610593,1767743433731,-500.0,0.00017999,2]
[400610594,1767743433740,-500.0,0.00017999,2]
[400610595,1767743433750,-500.0,0.00017999,2]
[400610596,1767743433760,-613.32,0.00017999,2]
[400610597,1767743433769,-613.32,0.00017999,2]
[400610598,1767743433779,-613.32,0.00017999,2]
[400610599,1767743433788,-613.32,0.00017999,2]
[400610600,1767743433798,-613.32,0.00017999,2]
[400610601,1767743433807,-613.32,0.00017999,2]
[400610602,1767743433816,-613.32,0.00017999,2]
[400610603,1767743433825,-613.32,0.00017999,2]
[400610604,1767743433834,-613.32,0.00017999,2]
[400610605,1767743433843,-613.32,0.00017999,2]
[400610606,1767743433852,-613.32,0.00017999,2]
[400610607,1767743433861,-613.32,0.00017999,2]
[400610608,1767743433870,-613.32,0.00017999,2]
[400610609,1767743433879,-613.32,0.00017999,2]
[400610610,1767743433888,-613.32,0.00017999,2]
[400610611,1767743433898,-613.32,0.00017999,2]
[400610612,1767743433907,-613.32,0.00017999,2]
[400610613,1767743433916,-613.32,0.00017999,2]
[400610614,1767743433925,-613.32,0.00017999,2]
[400610615,1767743433934,-613.32,0.00017999,2]
[400610616,1767743433943,-613.32,0.00017999,2]
[400610617,1767743433952,-613.32,0.00017999,2]
[400610618,1767743433961,-613.38812993,0.00017999,2]
[400610619,1767743433970,-500.0,0.00017999,2]
[400610620,1767743433979,-265650.6394743,0.00017999,2]
[400610621,1767743433990,-500.0,0.00017999,2]
[400610622,1767743434006,-500.0,0.00017999,2]
[400610623,1767743434016,-500.0,0.00017999,2]
[400610624,1767743434026,-500.0,0.00017999,2]
[400610625,1767743434035,-500.0,0.00017999,2]
[400610626,1767743434045,-500.0,0.00017999,2]
[400610627,1767743434054,-500.0,0.00017999,2]
[400610628,1767743434063,-500.0,0.00017999,2]
[400610629,1767743434075,-500.0,0.00017999,2]
[400610630,1767743434084,-500.0,0.00017999,2]
[400610631,1767743434093,-5744.2963635,0.00017999,2]
[400610632,1767743434102,-13489.211042,0.00017999,2]
[400610633,1767743434112,-500.0,0.00017999,2]
[400610634,1767743434121,-500.0,0.00017999,2]
[400610635,1767743434130,-500.0,0.00017999,2]
[400610636,1767743434140,-640.35101974,0.00017999,2]
[400610637,1767743434149,-500.0,0.00017999,2]
[400610638,1767743434158,-500.0,0.00017999,2]
[400610639,1767743434168,-363.3686382,0.00017999,2]
[400610640,1767743434177,-500.0,0.00017999,2]
[400610641,1767743434186,-500.0,0.00017999,2]
[400610642,1767743434196,-500.0,0.00017999,2]
[400610643,1767743434205,-500.0,0.00017999,2]
[400610644,1767743434215,-500.0,0.00017999,2]
[400610645,1767743434223,-500.0,0.00017999,2]
[400610646,1767743434233,-500.0,0.00017999,2]
[400610647,1767743434245,-500.0,0.00017999,2]
[400610648,1767743434254,-500.0,0.00017999,2]
[400610649,1767743434264,-500.0,0.00017999,2]
[400610650,1767743434273,-520.68688711,0.00017999,2]
[400610651,1767743434283,-500.0,0.00017999,2]
[400610652,1767743434292,-500.0,0.00017999,2]
[400610653,1767743434302,-500.0,0.00017999,2]
[400610654,1767743434311,-398.22396542,0.00017999,2]
[400610655,1767743434550,-186.50210346,0.00017999,2]
[400610656,1767743434563,-370.01513066,0.00017999,2]
[400610657,1767743434573,-500.0,0.00017999,2]
[400610658,1767743434582,-500.0,0.00017999,2]
[400610659,1767743434590,-508.86580876,0.00017999,2]
[400610660,1767743434600,-298.75621318,0.00017999,2]
[400610661,1767743434609,-500.0,0.00017999,2]
[400610662,1767743434618,-500.0,0.00017999,2]
[400610663,1767743434628,-185.61176867,0.00017999,2]
[400610664,1767743434637,-257.43501726,0.00017999,2]
[400610665,1767743434646,-424028.52029818,0.00018,2]
[400610672,1767743437761,-38190.95792998,0.00016512,2]
[400610673,1767743437800,-648.87411591,0.00016512,2]
[400610674,1767743437838,-46704.92379125,0.00016512,2]
[400610675,1767743437966,-914455.24416286,0.00016512,2]
[400610676,1767743437975,-1768.93639855,0.000179,2]
[400610677,1767743437984,-11530.92990851,0.000179,2]
[400610678,1767743437994,-164.72,0.00017989,2]
[400610679,1767743438005,-164.72,0.00017989,2]
[400610681,1767743438015,-164.72,0.0001799,2]
[400610682,1767743438024,-2177958.33873811,0.00018,2]
[400610683,1767743438033,-150.0,0.00018,2]
[400610684,1767743438043,-178.99,0.00018,2]
[400610685,1767743438053,-661.18,0.00018,2]
[400610686,1767743438063,-171.25,0.00018,2]
[400610687,1767743438073,-482.51,0.00018,2]
[400610688,1767743438085,-482.51,0.00018,2]
[400610689,1767743438095,-155.21,0.00018,2]
[400610690,1767743438105,-301.24900239,0.00018003,2]
[400610691,1767743438114,-373.21,0.00018004,2]
[400610692,1767743438124,-150.76,0.00018069,2]
[400610693,1767743438133,-19031.72768068,0.00018136,2]
[400610694,1767743438142,-441.82,0.00018195,2]
[400610696,1767743438152,-500.0,0.00018217,2]
[400610698,1767743438161,-1372.68,0.00018217,2]
[400610700,1767743438171,-19699.12014675,0.00018231,2]
[400610702,1767743438180,-500.0,0.00018234,2]
[400610704,1767743438190,-500.0,0.00018234,2]
[400610706,1767743438200,-300.0,0.00018278,2]
[400610708,1767743438209,-943.0,0.0001833,2]
[400610710,1767743438219,-943.0,0.00018407,2]
[400610712,1767743438228,-943.0,0.00018429,2]
[400610714,1767743438237,-166.66,0.00018466,2]
[400610716,1767743438247,-195.0,0.00018483,2]
[400610718,1767743438256,-500.0,0.00018491,2]
[400610720,1767743438265,-1372.68,0.00018491,2]
[400610722,1767743438275,-1000.0,0.00018521,2]
[400610724,1767743438284,-508.49267712,0.00018521,2]
[400610726,1767743438293,-500.0,0.00018521,2]
[400610728,1767743438303,-548.21180041,0.00018521,2]
[400610729,1767743438312,-1000.0,0.00018521,2]
[400610731,1767743438322,-508.40118338,0.00018521,2]
[400610733,1767743438332,-502.24390153,0.00018521,2]
[400610735,1767743438342,-1000.0,0.00018521,2]
[400610738,1767743438351,-500.0,0.00018521,2]
[400610739,1767743438361,-1000.0,0.00018521,2]
[400610742,1767743438371,-1000.0,0.00018521,2]
[400610743,1767743438380,-19699.12014675,0.0001854,2]
[400610745,1767743438390,-716.59,0.000186,2]
[400610747,1767743438400,-943.0,0.00018609,2]
[400610749,1767743438410,-8930.48,0.00018629,2]
[400610751,1767743438420,-187.0,0.00018647,2]
[400610753,1767743438430,-1852.42,0.00018647,2]
[400610755,1767743438440,-943.0,0.00018721,2]
[400610758,1767743438451,-365.74,0.00018721,2]
[400610759,1767743438460,-943.0,0.00018743,2]
[400610762,1767743438470,-943.0,0.00018752,2]
[400610764,1767743438480,-500.0,0.00018765,2]
[400610766,1767743438491,-1372.68,0.00018765,2]
[400610767,1767743438500,-19699.12014675,0.00018849,2]
[400610769,1767743438511,-1000.0,0.00018849,2]
[400610771,1767743438520,-441.82,0.00018877,2]
[400610773,1767743438530,-167.99433605,0.000189,2]
[400610775,1767743438540,-300.0,0.00019,2]
[400610778,1767743438552,-443.69732291,0.00019,2]
[400610780,1767743438562,-24107.16627916,0.00019,2]
[400610782,1767743438572,-166.66,0.0001902,2]
[400610784,1767743438581,-500.0,0.00019039,2]
[400610786,1767743438590,-1372.68,0.00019039,2]
[400610789,1767743438609,-943.0,0.00019062,2]
[400610791,1767743438620,-695.03832556,0.00019068,2]
[400610793,1767743438631,-1500.0,0.00019068,2]
[400610795,1767743438641,-1500.0,0.00019068,2]
[400610797,1767743438650,-1500.0,0.00019068,2]
[400610799,1767743438660,-1500.0,0.00019068,2]
[400610801,1767743438669,-150.76,0.00019073,2]
[400610803,1767743438679,-200.0,0.00019082,2]
[400610805,1767743438690,-422.92269279,0.00019092,2]
[400610807,1767743438700,-925.37495875,0.00019109,2]
[400610809,1767743438710,-900.0,0.00019124,2]
[400610811,1767743438720,-943.0,0.00019131,2]
[400610814,1767743438730,-19699.12014675,0.00019157,2]
[400610816,1767743438740,-916.805558,0.00019178,2]
[400610818,1767743438749,-420.0,0.00019178,2]
[400610820,1767743438758,-420.0,0.00019178,2]
[400610822,1767743438767,-943.0,0.0001918,2]
[400610824,1767743438776,-943.0,0.00019234,2]
[400610826,1767743438786,-1680.0,0.00019273,2]
[400610828,1767743438796,-943.0,0.00019286,2]
[400610830,1767743438805,-589.55968275,0.00019313,2]
[400610832,1767743438815,-1372.68,0.00019313,2]
[400610834,1767743438825,-311.54275263,0.00019314,2]
[400610836,1767743438835,-225.49170008,0.00019314,2]
[400610838,1767743438844,-195.0,0.00019314,2]
[400610840,1767743438854,-300.0,0.00019315,2]
[400610842,1767743438863,-195.0,0.00019315,2]
[400610844,1767743438873,-250.0,0.00019315,2]
[400610846,1767743438882,-600.0,0.00019315,2]
[400610848,1767743438892,-9982.38,0.00019339,2]
[400610850,1767743438901,-2968.25,0.00019339,2]
[400610852,1767743438912,-9999.99,0.00019339,2]
[400610854,1767743438921,-150.99,0.00019339,2]
[400610856,1767743438931,-999.99,0.00019339,2]
[400610858,1767743438940,-9999.99,0.00019339,2]
[400610860,1767743438950,-3215.66,0.00019339,2]
[400610862,1767743438959,-527.32,0.00019339,5]
[400610864,1767743438969,-336.88,0.00019339,2]
[400610866,1767743438978,-299.99,0.00019339,7]
[400610868,1767743438988,-17636.53,0.00019339,2]
[400610870,1767743438999,-2738.92,0.00019339,2]
[400610872,1767743439012,-9999.99,0.00019339,2]
[400610874,1767743439021,-1533.8,0.00019339,2]
[400610877,1767743439031,-19699.12014675,0.00019466,2]
[400610879,1767743439042,-943.0,0.00019476,2]
[400610881,1767743439051,-943.0,0.00019521,2]
[400610883,1767743439061,-943.0,0.00019548,2]
[400610885,1767743439071,-943.0,0.00019551,2]
[400610887,1767743439082,-441.82,0.00019559,2]
[400610889,1767743439091,-166.66,0.00019575,2]
[400610891,1767743439101,-1372.68,0.00019587,2]
[400610893,1767743439110,-2000.0,0.00019616,2]
[400610895,1767743439119,-500.0,0.00019616,2]
[400610897,1767743439129,-1500.0,0.00019616,2]
[400610899,1767743439138,-2000.0,0.00019616,2]
[400610901,1767743439147,-943.0,0.00019635,2]
[400610903,1767743439157,-943.0,0.00019645,2]
[400610905,1767743439166,-365.74,0.00019658,2]
[400610907,1767743439175,-24187.400291,0.00019725,2]
[400610909,1767743439185,-19699.12014675,0.00019775,2]
[400610911,1767743439195,-943.0,0.0001979,2]
[400610913,1767743439205,-1372.68,0.00019861,2]
[400610915,1767743439214,-943.0,0.00019876,2]
[400610917,1767743439225,-869.71,0.0001992,2]
[400610919,1767743439234,-5744.2963635,0.00019939,2]
[400610921,1767743439245,-943.0,0.00019943,2]
[400610923,1767743439255,-161953.1274176,0.0001995,15]
[400610925,1767743439265,-500.0,0.00019973,2]
[400610927,1767743439275,-500.0,0.00019973,2]
[400610929,1767743439285,-162.75708807,0.00019973,2]
[400610931,1767743439298,-500.0,0.00019973,2]
[400610933,1767743439307,-500.0,0.00019973,2]
[400610935,1767743439317,-162.64594824,0.00019973,2]
[400610937,1767743439326,-500.0,0.00019973,2]
[400610939,1767743439335,-500.0,0.00019973,2]
[400610941,1767743439344,-500.0,0.00019973,2]
[400610943,1767743439354,-500.0,0.00019973,2]
[400610945,1767743439364,-500.0,0.00019973,2]
[400610947,1767743439374,-500.0,0.00019973,2]
[400610949,1767743439383,-571.61330735,0.00019973,2]
[400610951,1767743439392,-500.0,0.00019973,2]
[400610953,1767743439401,-372.49405725,0.00019973,2]
[400610955,1767743439411,-500.0,0.00019973,2]
[400610957,1767743439423,-335.39255931,0.00019973,2]
[400610959,1767743439434,-500.0,0.00019973,2]
[400610961,1767743439443,-500.0,0.00019973,2]
[400610963,1767743439453,-500.0,0.00019973,2]
[400610965,1767743439462,-500.0,0.00019973,2]
[400610967,1767743439472,-500.0,0.00019973,2]
[400610969,1767743439481,-500.0,0.00019973,2]
[400610971,1767743439491,-500.0,0.00019973,2]
[400610973,1767743439501,-500.0,0.00019973,2]
[400610975,1767743439511,-500.0,0.00019973,2]
[400610977,1767743439522,-500.0,0.00019973,2]
[400610979,1767743439531,-500.0,0.00019973,2]
[400610982,1767743439545,-500.0,0.00019973,2]
[400610984,1767743439554,-500.0,0.00019973,2]
[400610986,1767743439563,-500.0,0.00019973,2]
[400610988,1767743439573,-500.815548,0.00019973,2]
[400610990,1767743439584,-156.89496894,0.00019973,2]
[400610992,1767743439593,-520.05691851,0.00019973,2]
[400610994,1767743439603,-500.0,0.00019973,2]
[400610996,1767743439612,-500.0,0.00019973,2]
[400610998,1767743439622,-500.0,0.00019973,2]
[400611000,1767743439632,-545.59988784,0.00019973,2]
[400611002,1767743439642,-500.0,0.00019973,2]
[400611004,1767743439652,-500.0,0.00019973,2]
[400611006,1767743439663,-510.33159281,0.00019973,2]
[400611008,1767743439672,-524.23019632,0.00019973,2]
[400611011,1767743439682,-500.0,0.00019973,2]
[400611013,1767743439691,-500.0,0.00019973,2]
[400611015,1767743439701,-500.0,0.00019973,2]
[400611017,1767743439711,-500.0,0.00019973,2]
[400611019,1767743439720,-500.0,0.00019973,2]
[400611021,1767743439729,-500.0,0.00019973,2]
[400611024,1767743439739,-500.0,0.00019973,2]
[400611026,1767743439748,-500.0,0.00019973,2]
[400611028,1767743439757,-500.0,0.00019973,2]
[400611030,1767743439767,-161.4599478,0.00019973,2]
[400611032,1767743439776,-500.0,0.00019973,2]
[400611034,1767743439785,-469.65305736,0.00019973,2]
[400611036,1767743439794,-484.20975983,0.00019973,2]
[400611038,1767743439803,-500.0,0.00019973,2]
[400611040,1767743439813,-500.0,0.00019973,2]
[400611042,1767743439821,-500.0,0.00019973,2]
[400611044,1767743439831,-501.86729539,0.00019973,2]
[400611046,1767743439840,-500.0,0.00019973,2]
[400611048,1767743439849,-500.0,0.00019973,2]
[400611049,1767743439858,-501.03208473,0.00019973,2]
[400611051,1767743439867,-500.0,0.00019973,2]
[400611052,1767743439877,-510.73735296,0.00019973,2]
[400611054,1767743439886,-500.0,0.00019973,2]
[400611056,1767743439895,-557.25951584,0.00019973,2]
[400611058,1767743439904,-500.0,0.00019973,2]
[400611060,1767743439913,-162.01757701,0.00019973,2]
[400611062,1767743439923,-500.0,0.00019973,2]
[400611063,1767743439932,-554.45007798,0.00019973,2]
[400611064,1767743439941,-182.50256145,0.00019973,2]
[400611065,1767743439950,-500.0,0.00019973,2]
[400611066,1767743439959,-164.10524853,0.00019973,2]
[400611067,1767743439968,-500.0,0.00019973,2]
[400611068,1767743439978,-167.31133184,0.00019973,2]
[400611069,1767743439987,-500.0,0.00019973,2]
[400611070,1767743439996,-999.41,0.0002,2]
[400611071,1767743440010,-1463.61091402,0.0002,5]
[400611072,1767743440019,-37267.36681425,0.0002,5]
[400611073,1767743440029,-8300.0,0.0002,4]
[400611074,1767743440039,-370.82306574,0.0002,20]
[400611075,1767743440050,-37721.03672082,0.0002,14]
[400611076,1767743440059,-4571.34107259,0.0002,3]
[400611077,1767743440068,-496.69513219,0.0002,10]
[400611078,1767743440079,-1557.97021985,0.0002,2]
[400611079,1767743440088,-165.52157161,0.0002,20]
[400611081,1767743440098,-1000.0,0.0002,7]
[400611083,1767743440107,-3166.8150377,0.00020036,2]
[400611113,1767743440365,-943.0,0.0002006,2]
[400611115,1767743440375,-150.76,0.00020077,2]
[400611117,1767743440384,-943.0,0.0002008,2]
[400611119,1767743440393,-19699.12014675,0.00020084,2]
[400611121,1767743440402,-1376.0,0.0002011,2]
[400611123,1767743440411,-1376.0,0.00020123,2]
[400611125,1767743440420,-1372.68,0.00020135,2]
[400611128,1767743440430,-2500.0,0.00020164,2]
[400611130,1767743440438,-1728.70627457,0.00020164,2]
[400611132,1767743440448,-161.49,0.00020219,2]
[400611134,1767743440458,-441.82,0.00020242,2]
[400611136,1767743440468,-13489.211042,0.00020302,2]
[400611138,1767743440477,-19699.12014675,0.00020393,2]
[400611140,1767743440487,-40295.41050032,0.00020395,2]
[400611143,1767743440501,-42631.01868648,0.00020395,2]
[400611144,1767743440511,-1372.68,0.00020408,2]
[400611147,1767743440521,-500.0,0.00020493,2]
[400611149,1767743440531,-265650.6394743,0.00020504,2]
[400611151,1767743440540,-278.74307495,0.00020521,2]
[400611152,1767743440549,-1000.0,0.00020521,2]
[400611154,1767743440558,-1000.0,0.00020521,2]
[400611156,1767743440567,-609.74056714,0.00020521,2]
[400611158,1767743440577,-1000.0,0.00020521,2]
[400611161,1767743440586,-1000.0,0.00020521,2]
[400611162,1767743440595,-1000.0,0.00020521,2]
[400611164,1767743440606,-1000.0,0.00020521,2]
[400611166,1767743440615,-1000.0,0.00020521,2]
[400611168,1767743440626,-1000.0,0.00020521,2]
[400611171,1767743440637,-1000.0,0.00020521,2]
[400611173,1767743440646,-1000.0,0.00020521,2]
[400611175,1767743440655,-1000.61424225,0.00020521,2]
[400611177,1767743440665,-1000.0,0.00020521,2]
[400611179,1767743440674,-1000.0,0.00020521,2]
[400611181,1767743440684,-194.75564205,0.00020521,2]
[400611183,1767743440693,-1000.0,0.00020521,2]
[400611185,1767743440703,-1000.0,0.00020521,2]
[400611187,1767743440712,-1000.0,0.00020521,2]
[400611189,1767743440721,-514.89956747,0.00020521,2]
[400611191,1767743440730,-1000.0,0.00020521,2]
[400611193,1767743440740,-932.597556,0.00020521,2]
[400611195,1767743440749,-690.66835614,0.00020521,2]
[400611197,1767743440758,-1000.0,0.00020521,2]
[400611199,1767743440767,-500.801884,0.00020521,2]
[400611201,1767743440776,-1000.0,0.00020521,2]
[400611203,1767743440785,-1000.0,0.00020521,2]
[400611205,1767743440794,-577.63829625,0.00020521,2]
[400611207,1767743440803,-168.23151009,0.00020521,2]
[400611209,1767743440812,-1000.0,0.00020521,2]
[400611211,1767743440821,-1000.0,0.00020521,2]
[400611213,1767743440830,-1000.0,0.00020521,2]
[400611215,1767743440840,-1000.0,0.00020521,2]
[400611217,1767743440849,-1000.0,0.00020521,2]
[400611219,1767743440858,-1000.0,0.00020521,2]
[400611221,1767743440868,-397.67768692,0.00020521,2]
[400611223,1767743440877,-1000.0,0.00020521,2]
[400611225,1767743440886,-1000.0,0.00020521,2]
[400611227,1767743440895,-1000.0,0.00020521,2]
[400611229,1767743440904,-1087.43896406,0.00020521,2]
[400611231,1767743440914,-1004.15287771,0.00020521,2]
[400611233,1767743440923,-570.38444001,0.00020521,2]
[400611235,1767743440932,-1000.0,0.00020521,2]
[400611237,1767743440942,-286.52563142,0.00020521,2]
[400611239,1767743440951,-1000.0,0.00020521,2]
[400611241,1767743440960,-1000.0,0.00020521,2]
[400611243,1767743440970,-428.91151684,0.00020521,2]
[400611245,1767743440979,-1000.0,0.00020521,2]
[400611247,1767743440988,-1000.0,0.00020521,2]
[400611249,1767743440998,-1000.0,0.00020521,2]
[400611251,1767743441011,-1000.0,0.00020521,2]
[400611253,1767743441021,-1000.0,0.00020521,2]
[400611255,1767743441030,-1000.0,0.00020521,2]
[400611257,1767743441040,-870.0,0.00020548,2]
[400611259,1767743441050,-365.74,0.00020594,2]
[400611261,1767743441059,-520.46,0.00020647,2]
[400611263,1767743441069,-463.60073187,0.0002066,2]
[400611265,1767743441080,-1372.71723832,0.00020682,2]
[400611267,1767743441090,-3000.0,0.00020712,2]
[400611269,1767743441099,-2823.5,0.00020717,2]
[400611271,1767743441108,-2658.44986633,0.0002088,2]
[400611273,1767743441117,-9917.98808771,0.000209,30]
[400611275,1767743441126,-441.82,0.00020924,2]
[400611277,1767743441135,-587.0,0.00020935,2]
[400611279,1767743441145,-587.0,0.00020935,2]
[400611281,1767743441154,-1000.0,0.00020943,2]
[400611283,1767743441164,-163.79051044,0.00020973,2]
[400611284,1767743441173,-150.0,0.00020973,2]
[400611287,1767743441183,-127519.24258494,0.0002099,2]
[400611289,1767743441192,-20000.0,0.00021,2]
[400611291,1767743441202,-1191.16510258,0.00021,2]
[400611293,1767743441211,-196.61170439,0.00021,2]
[400611294,1767743441220,-160.0,0.00021,7]
[400611296,1767743441230,-350.0,0.00021,2]
[400611298,1767743441239,-151.0,0.00021065,2]
[400611300,1767743441248,-1502.96555443,0.00021068,2]
[400611302,1767743441257,-506.60230757,0.00021068,2]
[400611304,1767743441267,-1500.0,0.00021068,2]